[Event "Late-Titled-Tuesday-Blitz-April-02-2024"]
[Site "Chess.com"]
[Date "2024.04.02"]
[Round "1"]
[White "Koalaskakistis"]
[Black "Sanan_Sjugirov"]
[Result "0-1"]
[WhiteElo "2514"]
[BlackElo "2975"]
[TimeControl "180+1"]
[EndTime "14:07:41 PDT"]
[Termination "Sanan_Sjugirov won by resignation"]

1. e4 {[%clk 0:02:59.3]} 1... c5 {[%clk 0:02:59.5]} 2. Nf3 {[%clk 0:02:55.6]}
2... Nc6 {[%clk 0:02:59.8]} 3. d4 {[%clk 0:02:55.2]} 3... cxd4 {[%clk
0:03:00.7]} 4. Nxd4 {[%clk 0:02:56.1]} 4... e5 {[%clk 0:03:01.3]} 5. Nb5 {[%clk
0:02:55]} 5... d6 {[%clk 0:03:01.9]} 6. c4 {[%clk 0:02:55]} 6... g6 {[%clk
0:02:59.1]} 7. N5c3 {[%clk 0:02:53.6]} 7... Bg7 {[%clk 0:02:57]} 8. Nd5 {[%clk
0:02:52.1]} 8... Be6 {[%clk 0:02:52.4]} 9. Nbc3 {[%clk 0:02:52.5]} 9... Rc8
{[%clk 0:02:33.2]} 10. Be3 {[%clk 0:02:47.6]} 10... Nge7 {[%clk 0:02:30.5]} 11.
Be2 {[%clk 0:02:46.3]} 11... O-O {[%clk 0:02:27.3]} 12. O-O {[%clk 0:02:45.7]}
12... f5 {[%clk 0:02:24.7]} 13. Nxe7+ {[%clk 0:02:27.4]} 13... Qxe7 {[%clk
0:02:21.2]} 14. Nd5 {[%clk 0:02:26.7]} 14... Qf7 {[%clk 0:02:17.8]} 15. f3
{[%clk 0:02:16.8]} 15... Nd4 {[%clk 0:02:05.8]} 16. b3 {[%clk 0:02:10.3]} 16...
Bxd5 {[%clk 0:02:00.3]} 17. exd5 {[%clk 0:02:06.8]} 17... Nxe2+ {[%clk
0:01:53.6]} 18. Qxe2 {[%clk 0:02:06.8]} 18... a6 {[%clk 0:01:51]} 19. Rad1
{[%clk 0:02:01.3]} 19... Rfe8 {[%clk 0:01:46.5]} 20. b4 {[%clk 0:01:53.6]} 20...
Rcd8 {[%clk 0:01:28]} 21. Bb6 {[%clk 0:01:48]} 21... Rd7 {[%clk 0:01:28.6]} 22.
Qd3 {[%clk 0:01:38.8]} 22... Rde7 {[%clk 0:00:52.8]} 23. c5 {[%clk 0:01:30.6]}
23... e4 {[%clk 0:00:53.2]} 24. fxe4 {[%clk 0:01:28.6]} 24... Rxe4 {[%clk
0:00:54.1]} 25. cxd6 {[%clk 0:01:20.4]} 25... Qd7 {[%clk 0:00:54.1]} 26. Bc5
{[%clk 0:00:45.6]} 26... Be5 {[%clk 0:00:53.9]} 27. a3 {[%clk 0:00:23.3]} 27...
Bxd6 {[%clk 0:00:37.8]} 28. Rc1 {[%clk 0:00:23.7]} 28... h5 {[%clk 0:00:28.5]}
29. Rfd1 {[%clk 0:00:18.5]} 29... Kh7 {[%clk 0:00:26.3]} 30. Qf3 {[%clk
0:00:19]} 30... R8e7 {[%clk 0:00:24.9]} 31. Qc3 {[%clk 0:00:17.7]} 31... R4e5
{[%clk 0:00:18.3]} 32. Qf3 {[%clk 0:00:15]} 32... Re2 {[%clk 0:00:16.3]} 33. Qc3
{[%clk 0:00:14.2]} 33... R2e5 {[%clk 0:00:04.4]} 34. Qf3 {[%clk 0:00:14.8]}
34... Re8 {[%clk 0:00:03]} 35. Qc3 {[%clk 0:00:14.1]} 35... R5e7 {[%clk
0:00:02]} 36. Qf6 {[%clk 0:00:11.9]} 36... Be5 {[%clk 0:00:02.4]} 37. Qb6 {[%clk
0:00:12.1]} 37... Rf7 {[%clk 0:00:02.3]} 38. d6 {[%clk 0:00:10.8]} 38... f4
{[%clk 0:00:02.9]} 39. Re1 {[%clk 0:00:10.3]} 39... f3 {[%clk 0:00:03]} 40. g3
{[%clk 0:00:08.4]} 40... h4 {[%clk 0:00:02]} 41. Bf2 {[%clk 0:00:08.6]} 41...
hxg3 {[%clk 0:00:02.3]} 42. Bxg3 {[%clk 0:00:07.9]} 42... Qh3 {[%clk 0:00:02.6]}
43. Qf2 {[%clk 0:00:08]} 43... Bd4 {[%clk 0:00:03]} 0-1

[Event "Late-Titled-Tuesday-Blitz-April-02-2024"]
[Site "Chess.com"]
[Date "2024.04.02"]
[Round "1"]
[White "nabukatnezarr"]
[Black "chessydotcom"]
[Result "1-0"]
[WhiteElo "2627"]
[BlackElo "2305"]
[TimeControl "180+1"]
[EndTime "14:07:41 PDT"]
[Termination "nabukatnezarr won by resignation"]

1. b3 {[%clk 0:02:48.8]} 1... d5 {[%clk 0:02:58.9]} 2. Bb2 {[%clk 0:02:49.7]}
2... c5 {[%clk 0:02:58]} 3. e3 {[%clk 0:02:48.9]} 3... e6 {[%clk 0:02:55.5]} 4.
Nf3 {[%clk 0:02:44.8]} 4... Nf6 {[%clk 0:02:55.3]} 5. Bb5+ {[%clk 0:02:43.4]}
5... Bd7 {[%clk 0:02:53.4]} 6. Be2 {[%clk 0:02:39.9]} 6... Bd6 {[%clk
0:02:46.2]} 7. O-O {[%clk 0:02:40.8]} 7... Bc6 {[%clk 0:02:43.9]} 8. d4 {[%clk
0:02:39.1]} 8... O-O {[%clk 0:02:42.9]} 9. Nbd2 {[%clk 0:02:37.2]} 9... Nbd7
{[%clk 0:02:29]} 10. Ne5 {[%clk 0:02:35.9]} 10... Bxe5 {[%clk 0:02:18.9]} 11.
dxe5 {[%clk 0:02:35.5]} 11... Ne4 {[%clk 0:02:16.7]} 12. Nxe4 {[%clk 0:02:18.5]}
12... dxe4 {[%clk 0:02:16.3]} 13. Qd6 {[%clk 0:02:19.3]} 13... Qb6 {[%clk
0:02:03.2]} 14. Rfd1 {[%clk 0:02:03.3]} 14... Rad8 {[%clk 0:02:02.4]} 15. a4
{[%clk 0:01:18]} 15... a5 {[%clk 0:01:30.1]} 16. Ba3 {[%clk 0:01:13.3]} 16...
Qa7 {[%clk 0:01:07.8]} 17. h4 {[%clk 0:01:12]} 17... Qa8 {[%clk 0:01:04.4]} 18.
h5 {[%clk 0:01:07.9]} 18... h6 {[%clk 0:01:03]} 19. Bxc5 {[%clk 0:00:50.6]}
19... Nf6 {[%clk 0:00:50.8]} 20. Qxf8+ {[%clk 0:00:44.8]} 20... Rxf8 {[%clk
0:00:49.5]} 21. Bxf8 {[%clk 0:00:45.7]} 21... Qxf8 {[%clk 0:00:44.4]} 22. exf6
{[%clk 0:00:46.1]} 22... gxf6 {[%clk 0:00:45.3]} 23. Rd2 {[%clk 0:00:46.3]}
23... Qc5 {[%clk 0:00:43.7]} 24. Rad1 {[%clk 0:00:46.1]} 24... b5 {[%clk
0:00:42.2]} 25. axb5 {[%clk 0:00:29.3]} 25... Bxb5 {[%clk 0:00:43.1]} 26. Bxb5
{[%clk 0:00:30]} 26... Qxb5 {[%clk 0:00:43.8]} 27. Ra1 {[%clk 0:00:24.1]} 27...
Qxh5 {[%clk 0:00:40.1]} 28. Rd8+ {[%clk 0:00:23.4]} 28... Kg7 {[%clk 0:00:39.9]}
29. Ra8 {[%clk 0:00:24.2]} 29... Qc5 {[%clk 0:00:39]} 30. c4 {[%clk 0:00:21.9]}
30... Qb4 {[%clk 0:00:36.5]} 31. R8xa5 {[%clk 0:00:21.6]} 31... Qxb3 {[%clk
0:00:36.4]} 32. Rc1 {[%clk 0:00:21.3]} 32... Qb2 {[%clk 0:00:34.5]} 33. Raa1
{[%clk 0:00:21.5]} 33... f5 {[%clk 0:00:25.4]} 34. c5 {[%clk 0:00:22.4]} 34...
Qb7 {[%clk 0:00:19.4]} 35. c6 {[%clk 0:00:22.6]} 35... Qc7 {[%clk 0:00:18.3]}
36. Rab1 {[%clk 0:00:23.3]} 36... f4 {[%clk 0:00:18.1]} 37. Rb7 {[%clk
0:00:23.2]} 37... Qc8 {[%clk 0:00:18.3]} 38. exf4 {[%clk 0:00:21.8]} 38... Kf6
{[%clk 0:00:17.6]} 39. g3 {[%clk 0:00:21.5]} 39... h5 {[%clk 0:00:17.6]} 40. Rb5
{[%clk 0:00:20.7]} 40... h4 {[%clk 0:00:17.2]} 41. c7 {[%clk 0:00:20.7]} 41...
hxg3 {[%clk 0:00:16.7]} 42. Rb8 {[%clk 0:00:19.2]} 42... gxf2+ {[%clk
0:00:15.4]} 43. Kxf2 {[%clk 0:00:20.1]} 43... Qa6 {[%clk 0:00:15.6]} 44. c8=Q
{[%clk 0:00:18.8]} 44... Qa2+ {[%clk 0:00:15.7]} 45. Rc2 {[%clk 0:00:18.9]}
45... Qa7+ {[%clk 0:00:14.9]} 46. Ke2 {[%clk 0:00:18.2]} 46... Qd4 {[%clk
0:00:14]} 47. Qc3 {[%clk 0:00:17.6]} 1-0

[Event "Late-Titled-Tuesday-Blitz-April-02-2024"]
[Site "Chess.com"]
[Date "2024.04.02"]
[Round "1"]
[White "Eagle_2019"]
[Black "Good_Knight_Kiss"]
[Result "1-0"]
[WhiteElo "2868"]
[BlackElo "2484"]
[TimeControl "180+1"]
[EndTime "14:07:42 PDT"]
[Termination "Eagle_2019 won on time"]

1. Nf3 {[%clk 0:02:59.9]} 1... Nf6 {[%clk 0:02:59.4]} 2. g3 {[%clk 0:02:59.8]}
2... g6 {[%clk 0:02:59.8]} 3. Bg2 {[%clk 0:02:59.9]} 3... Bg7 {[%clk 0:03:00.4]}
4. O-O {[%clk 0:03:00.1]} 4... O-O {[%clk 0:03:00.7]} 5. d3 {[%clk 0:03:00]}
5... d6 {[%clk 0:03:01.1]} 6. Nbd2 {[%clk 0:02:59.1]} 6... c5 {[%clk 0:02:59.4]}
7. e4 {[%clk 0:02:58.6]} 7... Nc6 {[%clk 0:02:59.7]} 8. c3 {[%clk 0:02:54.7]}
8... Rb8 {[%clk 0:02:59.3]} 9. a4 {[%clk 0:02:54.4]} 9... a6 {[%clk 0:02:59.3]}
10. Nc4 {[%clk 0:02:52.5]} 10... b5 {[%clk 0:02:58.5]} 11. axb5 {[%clk
0:02:50.4]} 11... axb5 {[%clk 0:02:59.4]} 12. Ne3 {[%clk 0:02:50.4]} 12... b4
{[%clk 0:02:48.3]} 13. Bd2 {[%clk 0:02:50.2]} 13... Nd7 {[%clk 0:02:40.3]} 14.
Qc1 {[%clk 0:02:48.9]} 14... Nde5 {[%clk 0:02:31.7]} 15. Ne1 {[%clk 0:02:47.9]}
15... Ng4 {[%clk 0:02:15.7]} 16. h3 {[%clk 0:02:40.8]} 16... Nxe3 {[%clk
0:02:15.2]} 17. Bxe3 {[%clk 0:02:41.7]} 17... Bd7 {[%clk 0:01:59.3]} 18. Bh6
{[%clk 0:02:30.7]} 18... bxc3 {[%clk 0:01:52.6]} 19. bxc3 {[%clk 0:02:25.5]}
19... Qb6 {[%clk 0:01:47.4]} 20. Bxg7 {[%clk 0:02:21.8]} 20... Kxg7 {[%clk
0:01:47.4]} 21. Nc2 {[%clk 0:02:17.7]} 21... Qb2 {[%clk 0:01:33.6]} 22. Qd2
{[%clk 0:02:14]} 22... Be6 {[%clk 0:01:24.7]} 23. Rfc1 {[%clk 0:01:57.9]} 23...
Rb3 {[%clk 0:01:12.5]} 24. h4 {[%clk 0:01:22.8]} 24... Qxc3 {[%clk 0:01:06.2]}
25. Qd1 {[%clk 0:01:19.4]} 25... Qf6 {[%clk 0:00:55.5]} 26. Rab1 {[%clk
0:01:05.1]} 26... Rfb8 {[%clk 0:00:53.9]} 27. Rxb3 {[%clk 0:00:54.1]} 27... Rxb3
{[%clk 0:00:50.9]} 28. Rb1 {[%clk 0:00:50.3]} 28... Rb2 {[%clk 0:00:45.6]} 29.
Rxb2 {[%clk 0:00:39.2]} 29... Qxb2 {[%clk 0:00:46.5]} 30. Ne3 {[%clk 0:00:38.9]}
30... Nd4 {[%clk 0:00:36.1]} 31. f4 {[%clk 0:00:38.4]} 31... h5 {[%clk
0:00:15.7]} 32. f5 {[%clk 0:00:35.8]} 32... Bb3 {[%clk 0:00:15.7]} 33. Qe1
{[%clk 0:00:33.1]} 33... Qe2 {[%clk 0:00:14]} 34. Qxe2 {[%clk 0:00:27.3]} 34...
Nxe2+ {[%clk 0:00:14.9]} 35. Kf2 {[%clk 0:00:27.7]} 35... Nd4 {[%clk 0:00:14.4]}
36. fxg6 {[%clk 0:00:24.3]} 36... fxg6 {[%clk 0:00:14.3]} 37. g4 {[%clk
0:00:24.3]} 37... Kf6 {[%clk 0:00:12]} 38. g5+ {[%clk 0:00:23.4]} 38... Ke5
{[%clk 0:00:11]} 39. Bh3 {[%clk 0:00:22.6]} 39... e6 {[%clk 0:00:09.2]} 40. Ng2
{[%clk 0:00:21.3]} 40... d5 {[%clk 0:00:06.3]} 41. exd5 {[%clk 0:00:20.4]} 41...
exd5 {[%clk 0:00:06.5]} 42. Bd7 {[%clk 0:00:20]} 42... Bc2 {[%clk 0:00:05.4]}
43. Ne1 {[%clk 0:00:18.8]} 43... Bb1 {[%clk 0:00:05]} 44. Be8 {[%clk 0:00:18.8]}
44... Nf5 {[%clk 0:00:04.6]} 45. Bxg6 {[%clk 0:00:18.5]} 45... Nxh4 {[%clk
0:00:04.6]} 46. d4+ {[%clk 0:00:17.4]} 46... cxd4 {[%clk 0:00:02.8]} 47. Bxb1
{[%clk 0:00:17.8]} 47... Nf5 {[%clk 0:00:01.7]} 48. Nf3+ {[%clk 0:00:17.9]} 1-0

[Event "Late-Titled-Tuesday-Blitz-April-02-2024"]
[Site "Chess.com"]
[Date "2024.04.02"]
[Round "1"]
[White "TanitoluwaAps116"]
[Black "Klendi"]
[Result "1-0"]
[WhiteElo "2813"]
[BlackElo "2452"]
[TimeControl "180+1"]
[EndTime "14:07:44 PDT"]
[Termination "TanitoluwaAps116 won on time"]

1. e4 {[%clk 0:02:56.4]} 1... e5 {[%clk 0:02:59.6]} 2. Nf3 {[%clk 0:02:51.7]}
2... Nc6 {[%clk 0:03:00]} 3. Nc3 {[%clk 0:02:52.2]} 3... Nf6 {[%clk 0:02:59.9]}
4. Bb5 {[%clk 0:02:52.2]} 4... Bb4 {[%clk 0:02:57.5]} 5. O-O {[%clk 0:02:49.5]}
5... O-O {[%clk 0:02:51.9]} 6. Bxc6 {[%clk 0:02:49.2]} 6... dxc6 {[%clk
0:02:48]} 7. d3 {[%clk 0:02:49.1]} 7... Nd7 {[%clk 0:02:42.9]} 8. Ne2 {[%clk
0:02:48.4]} 8... f6 {[%clk 0:02:41.7]} 9. Be3 {[%clk 0:02:46.2]} 9... Rf7 {[%clk
0:02:37.5]} 10. a3 {[%clk 0:02:46]} 10... Bf8 {[%clk 0:02:35.8]} 11. Ng3 {[%clk
0:02:38.9]} 11... Nc5 {[%clk 0:02:34.9]} 12. b3 {[%clk 0:02:36]} 12... Ne6
{[%clk 0:02:34.2]} 13. Qd2 {[%clk 0:02:29.4]} 13... c5 {[%clk 0:02:30.5]} 14. b4
{[%clk 0:02:06.9]} 14... c4 {[%clk 0:02:06.2]} 15. dxc4 {[%clk 0:01:59]} 15...
Qe8 {[%clk 0:01:56.8]} 16. Rfd1 {[%clk 0:01:44.3]} 16... Qa4 {[%clk 0:01:53.9]}
17. Qc3 {[%clk 0:01:36.9]} 17... c5 {[%clk 0:01:48.5]} 18. bxc5 {[%clk
0:01:15.8]} 18... Bd7 {[%clk 0:01:42.7]} 19. Rab1 {[%clk 0:01:03.2]} 19... Bc6
{[%clk 0:01:41.5]} 20. Rd5 {[%clk 0:00:39.1]} 20... Rc7 {[%clk 0:01:15.5]} 21.
Qb4 {[%clk 0:00:32.4]} 21... Qxc2 {[%clk 0:01:07.1]} 22. Rd2 {[%clk 0:00:27.1]}
22... Qa4 {[%clk 0:00:59.3]} 23. Nf5 {[%clk 0:00:21]} 23... a5 {[%clk
0:00:50.3]} 24. Qxa4 {[%clk 0:00:19.4]} 24... Bxa4 {[%clk 0:00:50.2]} 25. Nd6
{[%clk 0:00:10.1]} 25... Nxc5 {[%clk 0:00:42.8]} 26. Bxc5 {[%clk 0:00:05.2]}
26... Rxc5 {[%clk 0:00:43.7]} 27. Nxb7 {[%clk 0:00:04.3]} 27... Rxc4 {[%clk
0:00:42.3]} 28. Nd6 {[%clk 0:00:02.7]} 28... Rc2 {[%clk 0:00:38.5]} 29. Rxc2
{[%clk 0:00:02.5]} 29... Bxc2 {[%clk 0:00:39.4]} 30. Rc1 {[%clk 0:00:02.9]}
30... Bxd6 {[%clk 0:00:36.4]} 31. Rxc2 {[%clk 0:00:03.4]} 31... Bxa3 {[%clk
0:00:37.1]} 32. Nd2 {[%clk 0:00:03.5]} 32... Bb4 {[%clk 0:00:36.7]} 33. Nc4
{[%clk 0:00:02.9]} 33... Rc8 {[%clk 0:00:36]} 34. Ne3 {[%clk 0:00:02.4]} 34...
Ra8 {[%clk 0:00:31.1]} 35. Ra2 {[%clk 0:00:01.5]} 35... a4 {[%clk 0:00:31.4]}
36. Kf1 {[%clk 0:00:01.7]} 36... a3 {[%clk 0:00:30.3]} 37. Ke2 {[%clk
0:00:02.2]} 37... Rd8 {[%clk 0:00:25.5]} 38. f3 {[%clk 0:00:02.1]} 38... Rc8
{[%clk 0:00:19.9]} 39. Nc2 {[%clk 0:00:02.2]} 39... Bc5 {[%clk 0:00:16.9]} 40.
Kd3 {[%clk 0:00:02.6]} 40... Rb8 {[%clk 0:00:15.2]} 41. Kc3 {[%clk 0:00:02.5]}
41... Bd6 {[%clk 0:00:14.3]} 42. Nxa3 {[%clk 0:00:02.7]} 42... Rc8+ {[%clk
0:00:01.9]} 43. Nc4 {[%clk 0:00:02.6]} 1-0

[Event "Late-Titled-Tuesday-Blitz-April-02-2024"]
[Site "Chess.com"]
[Date "2024.04.02"]
[Round "1"]
[White "LuisFSiles"]
[Black "IMRosen"]
[Result "0-1"]
[WhiteElo "2348"]
[BlackElo "2648"]
[TimeControl "180+1"]
[EndTime "14:07:46 PDT"]
[Termination "IMRosen won by resignation"]

1. e4 {[%clk 0:03:00.9]} 1... c5 {[%clk 0:02:57.5]} 2. Nf3 {[%clk 0:03:00.4]}
2... Nc6 {[%clk 0:02:57.7]} 3. d4 {[%clk 0:02:59.3]} 3... cxd4 {[%clk
0:02:58.6]} 4. Nxd4 {[%clk 0:02:59.7]} 4... g6 {[%clk 0:02:59.3]} 5. c4 {[%clk
0:02:57.5]} 5... Nf6 {[%clk 0:02:58.8]} 6. Nc3 {[%clk 0:02:57.4]} 6... d6 {[%clk
0:02:57.4]} 7. Be2 {[%clk 0:02:56.3]} 7... Nxd4 {[%clk 0:02:57.7]} 8. Qxd4
{[%clk 0:02:56.4]} 8... Bg7 {[%clk 0:02:58.2]} 9. Be3 {[%clk 0:02:53]} 9... O-O
{[%clk 0:02:58.5]} 10. Qd2 {[%clk 0:02:52.6]} 10... a5 {[%clk 0:02:58.8]} 11.
O-O {[%clk 0:02:37.8]} 11... a4 {[%clk 0:02:58.6]} 12. Rac1 {[%clk 0:02:36.6]}
12... Qa5 {[%clk 0:02:51]} 13. f3 {[%clk 0:02:36.6]} 13... Be6 {[%clk
0:02:47.9]} 14. Nd5 {[%clk 0:02:34.6]} 14... Qxd2 {[%clk 0:02:20.3]} 15. Nxe7+
{[%clk 0:02:27.5]} 15... Kh8 {[%clk 0:02:20.3]} 16. Bxd2 {[%clk 0:02:27.5]}
16... Rfe8 {[%clk 0:02:20.9]} 17. Nd5 {[%clk 0:02:26.9]} 17... Nxd5 {[%clk
0:02:15.9]} 18. cxd5 {[%clk 0:02:25.5]} 18... Bxd5 {[%clk 0:02:16.3]} 19. Bb5
{[%clk 0:02:02.9]} 19... Bc6 {[%clk 0:00:52.2]} 20. Bxc6 {[%clk 0:02:02.6]}
20... bxc6 {[%clk 0:00:53.1]} 21. Rxc6 {[%clk 0:02:02.9]} 21... Reb8 {[%clk
0:00:28]} 22. Bc3 {[%clk 0:01:40.9]} 22... Bxc3 {[%clk 0:00:27.4]} 23. bxc3
{[%clk 0:01:40.3]} 23... Rb2 {[%clk 0:00:28.1]} 24. Rf2 {[%clk 0:01:12.6]} 24...
Rb1+ {[%clk 0:00:28.6]} 25. Rf1 {[%clk 0:01:12.9]} 25... Rb2 {[%clk 0:00:29.5]}
26. Rf2 {[%clk 0:01:13.4]} 26... a3 {[%clk 0:00:30.2]} 27. Rxd6 {[%clk
0:01:10.8]} 27... Rb1+ {[%clk 0:00:18.5]} 28. Rf1 {[%clk 0:01:08.4]} 28... Rb2
{[%clk 0:00:19.2]} 29. Rf2 {[%clk 0:00:59.3]} 29... Rab8 {[%clk 0:00:19.3]} 30.
Rdd2 {[%clk 0:00:49.8]} 30... Rb1+ {[%clk 0:00:18.4]} 31. Rf1 {[%clk 0:00:50.2]}
31... R1b2 {[%clk 0:00:18.5]} 32. Rfd1 {[%clk 0:00:43.1]} 32... Kg7 {[%clk
0:00:14.7]} 33. Kf2 {[%clk 0:00:43.3]} 33... Kf6 {[%clk 0:00:06.2]} 34. Ke3
{[%clk 0:00:41.6]} 34... g5 {[%clk 0:00:06.7]} 35. g3 {[%clk 0:00:36.9]} 35...
h5 {[%clk 0:00:06.2]} 36. f4 {[%clk 0:00:37]} 36... g4 {[%clk 0:00:06.7]} 37.
Rd6+ {[%clk 0:00:36.2]} 37... Kg7 {[%clk 0:00:06.4]} 38. R1d2 {[%clk 0:00:35.1]}
38... Rb1 {[%clk 0:00:05.2]} 39. f5 {[%clk 0:00:32.6]} 39... Rf1 {[%clk
0:00:04.9]} 40. Rd7 {[%clk 0:00:29.4]} 40... Rf3+ {[%clk 0:00:05.1]} 41. Kd4
{[%clk 0:00:28.6]} 41... Rb2 {[%clk 0:00:03]} 42. Ke5 {[%clk 0:00:25.9]} 42...
Rf2 {[%clk 0:00:01.8]} 43. f6+ {[%clk 0:00:22.4]} 43... Kg6 {[%clk 0:00:01.4]}
44. Rxf2 {[%clk 0:00:18.7]} 44... Rxf2 {[%clk 0:00:02.3]} 45. Kd4 {[%clk
0:00:16.4]} 45... Rd2+ {[%clk 0:00:02]} 46. Kc4 {[%clk 0:00:15.2]} 46... Rxd7
{[%clk 0:00:02.9]} 47. Kb3 {[%clk 0:00:15.7]} 47... Kxf6 {[%clk 0:00:03.4]} 48.
e5+ {[%clk 0:00:13.4]} 48... Kxe5 {[%clk 0:00:03.9]} 49. Kxa3 {[%clk 0:00:14.3]}
49... Rb7 {[%clk 0:00:04.6]} 50. c4 {[%clk 0:00:13.9]} 50... Kd4 {[%clk
0:00:05]} 51. c5 {[%clk 0:00:14.8]} 51... Kxc5 {[%clk 0:00:04.9]} 0-1

[Event "Late-Titled-Tuesday-Blitz-April-02-2024"]
[Site "Chess.com"]
[Date "2024.04.02"]
[Round "1"]
[White "AlexandreHouhou"]
[Black "Elprofessor21"]
[Result "1-0"]
[WhiteElo "2371"]
[BlackElo "2635"]
[TimeControl "180+1"]
[EndTime "14:07:49 PDT"]
[Termination "AlexandreHouhou won by resignation"]

1. e4 {[%clk 0:03:00.1]} 1... c5 {[%clk 0:02:54.2]} 2. Nf3 {[%clk 0:03:00.3]}
2... d6 {[%clk 0:02:54.3]} 3. d4 {[%clk 0:03:00.7]} 3... cxd4 {[%clk 0:02:54]}
4. Nxd4 {[%clk 0:03:01.6]} 4... Nf6 {[%clk 0:02:53.7]} 5. Nc3 {[%clk 0:03:02.3]}
5... a6 {[%clk 0:02:50.2]} 6. Be2 {[%clk 0:03:01.4]} 6... e5 {[%clk 0:02:47.6]}
7. Nf3 {[%clk 0:02:59.2]} 7... Be7 {[%clk 0:02:31.2]} 8. Bg5 {[%clk 0:02:58]}
8... Nbd7 {[%clk 0:02:30]} 9. Qd2 {[%clk 0:02:49.5]} 9... O-O {[%clk 0:02:27.2]}
10. O-O {[%clk 0:02:41]} 10... b5 {[%clk 0:02:22.1]} 11. Nd5 {[%clk 0:01:59.6]}
11... Nc5 {[%clk 0:01:46.8]} 12. Bxf6 {[%clk 0:01:35.3]} 12... Bxf6 {[%clk
0:01:45.4]} 13. Qe3 {[%clk 0:01:25.9]} 13... Bb7 {[%clk 0:01:30.3]} 14. Rfd1
{[%clk 0:01:25.8]} 14... Rc8 {[%clk 0:01:17.9]} 15. Rd2 {[%clk 0:01:16.4]} 15...
Bxd5 {[%clk 0:00:57.4]} 16. Rxd5 {[%clk 0:01:16.1]} 16... Qc7 {[%clk 0:00:55.9]}
17. Rad1 {[%clk 0:01:04.3]} 17... Rfd8 {[%clk 0:00:55.5]} 18. b3 {[%clk
0:00:45.1]} 18... b4 {[%clk 0:00:46.6]} 19. Bc4 {[%clk 0:00:42.3]} 19... a5
{[%clk 0:00:44.8]} 20. h4 {[%clk 0:00:33.6]} 20... h6 {[%clk 0:00:38.9]} 21. g4
{[%clk 0:00:27.7]} 21... Ne6 {[%clk 0:00:37.1]} 22. g5 {[%clk 0:00:20.4]} 22...
hxg5 {[%clk 0:00:34.6]} 23. hxg5 {[%clk 0:00:21.3]} 23... Be7 {[%clk 0:00:34.6]}
24. g6 {[%clk 0:00:21.3]} 24... Nf4 {[%clk 0:00:34.3]} 25. gxf7+ {[%clk
0:00:20.8]} 25... Kf8 {[%clk 0:00:34.8]} 26. R5d2 {[%clk 0:00:14.4]} 26... Qd7
{[%clk 0:00:34.9]} 27. Nxe5 {[%clk 0:00:10.9]} 27... Qh3 {[%clk 0:00:23.6]} 28.
Qxf4 {[%clk 0:00:07.3]} 28... dxe5 {[%clk 0:00:20.4]} 29. Rxd8+ {[%clk
0:00:05.2]} 29... Rxd8 {[%clk 0:00:18.1]} 30. Rxd8+ {[%clk 0:00:04.4]} 30...
Bxd8 {[%clk 0:00:19]} 31. Qf5 {[%clk 0:00:03.7]} 31... Qxf5 {[%clk 0:00:15.1]}
32. exf5 {[%clk 0:00:04.6]} 32... Bb6 {[%clk 0:00:12]} 33. Kg2 {[%clk
0:00:04.7]} 33... Ke7 {[%clk 0:00:12.4]} 34. Kf3 {[%clk 0:00:05]} 34... Bc5
{[%clk 0:00:12]} 35. Ke4 {[%clk 0:00:05]} 35... Bxf2 {[%clk 0:00:08.2]} 36. Kxe5
{[%clk 0:00:05.6]} 36... Be1 {[%clk 0:00:07.6]} 37. Kd5 {[%clk 0:00:03.5]} 37...
Bf2 {[%clk 0:00:05.1]} 38. Kc6 {[%clk 0:00:03.9]} 38... Be3 {[%clk 0:00:03.8]}
39. Kb5 {[%clk 0:00:04.1]} 39... Bd2 {[%clk 0:00:03.7]} 40. Kxa5 {[%clk
0:00:04.6]} 40... Kf8 {[%clk 0:00:03.4]} 41. Ka4 {[%clk 0:00:04.9]} 41... Bc3
{[%clk 0:00:03.2]} 42. a3 {[%clk 0:00:05.4]} 42... bxa3 {[%clk 0:00:04.1]} 43.
Kxa3 {[%clk 0:00:06.2]} 43... Be5 {[%clk 0:00:04.7]} 44. Ka4 {[%clk 0:00:06.7]}
44... Bd6 {[%clk 0:00:05.4]} 45. b4 {[%clk 0:00:07.2]} 45... Ke7 {[%clk
0:00:06.1]} 46. b5 {[%clk 0:00:07.7]} 46... Kf6 {[%clk 0:00:06.6]} 47. b6 {[%clk
0:00:07.8]} 47... Ke7 {[%clk 0:00:06.4]} 48. Kb5 {[%clk 0:00:08.1]} 48... g5
{[%clk 0:00:06.4]} 49. fxg6 {[%clk 0:00:07.8]} 49... Kf8 {[%clk 0:00:06.6]} 50.
Kc6 {[%clk 0:00:08.1]} 1-0